bitfinex-derivatives/quotes_BTCF0:USTF0_20230102
["timestamp","ask_amount","ask_price","bid_price","bid_amount"]
[1672638073650,0.008,16658.0,16657.0,0.95952765]
[1672638074174,0.1573,16658.0,16657.0,0.81062765]
[1672638074800,0.1569,16658.0,16657.0,0.81062765]
[1672638075220,0.1559,16658.0,16657.0,0.8077]
[1672638076270,0.1489,16658.0,16657.0,0.8007]
[1672638076480,0.1559,16658.0,16657.0,0.8077]
[1672638081006,0.1559,16658.0,16657.0,0.507]
[1672638081221,0.1559,16658.0,16657.0,0.8077]
[1672638082791,0.1571,16658.0,16657.0,0.8077]
[1672638085745,0.1571,16658.0,16657.0,0.507]
[1672638086050,0.1571,16658.0,16657.0,0.8077]
[1672638087933,0.1571,16658.0,16657.0,0.507]
[1672638088148,0.1571,16658.0,16657.0,0.8077]
[1672638093087,0.1571,16658.0,16657.0,0.507]
[1672638095195,0.15698928,16658.0,16657.0,0.8077]
[1672638103914,0.15698928,16658.0,16657.0,0.507]
[1672638113058,0.30608928,16658.0,16657.0,0.507]
[1672638119789,0.00688928,16658.0,16657.0,0.6559]
[1672638123050,0.007,16658.0,16657.0,0.6489]
[1672638124729,0.007,16658.0,16657.0,0.6501]
[1672638127254,0.007,16658.0,16657.0,1.2512]
[1672638129138,0.1501,16664.0,16658.0,0.007]
[1672638129344,0.1501,16664.0,16663.0,0.3007]
[1672638129778,0.1501,16664.0,16663.0,0.4007]
[1672638129975,0.1501,16664.0,16663.0,0.8007]
[1672638131035,0.1501,16664.0,16663.0,0.8107]
[1672638133882,0.1501,16664.0,16663.0,4.5807]
[1672638134822,0.1489,16665.0,16663.0,4.7308]
[1672638135135,0.1489,16665.0,16664.0,0.5]
[1672638136505,0.1489,16665.0,16664.0,0.511]
[1672638141233,0.1501,16666.0,16664.0,0.8117]
[1672638142496,0.1488,16665.0,16664.0,0.011]
[1672638142700,0.1488,16665.0,16664.0,0.01]
[1672638143131,0.1488,16665.0,16663.0,0.5]
[1672638143340,0.2993,16666.0,16664.0,0.01]
[1672638143553,0.1501,16665.0,16663.0,0.5]
[1672638143868,0.1489,16664.0,16663.0,0.5]
[1672638144806,0.1489,16664.0,16659.0,0.6011]
[1672638144807,0.1489,16664.0,16660.0,0.4508]
[1672638145020,0.1501,16661.0,16660.0,0.3007]
[1672638147851,0.1501,16661.0,16659.0,0.5]
[1672638148066,0.1501,16661.0,16660.0,0.3007]
[1672638149016,0.4501,16661.0,16658.0,0.3077]
[1672638149230,0.149,16659.0,16658.0,0.3077]
[1672638149429,0.149,16659.0,16658.0,0.8077]
[1672638150383,0.149,16659.0,16658.0,0.9127]
[1672638154899,0.1501,16659.0,16658.0,0.9127]
[1672638164684,0.1501,16660.0,16658.0,0.9127]
[1672638165939,0.1501,16660.0,16658.0,0.8077]
[1672638166251,0.1501,16660.0,16658.0,0.9127]
[1672638167087,0.149,16659.0,16658.0,0.9127]
[1672638176027,0.149,16659.0,16658.0,0.612]
[1672638176243,0.149,16659.0,16658.0,0.9127]
[1672638180448,0.149,16659.0,16658.0,0.612]
[1672638180665,0.149,16659.0,16658.0,0.9127]
[1672638181807,0.149,16659.0,16658.0,0.612]
[1672638182227,0.149,16659.0,16658.0,0.9127]
[1672638182962,0.149,16659.0,16658.0,0.91262426]
[1672638184961,0.1501,16660.0,16658.0,1.06272426]
[1672638186019,0.1501,16660.0,16658.0,0.95772426]
[1672638186234,0.1501,16660.0,16658.0,1.06272426]
[1672638187069,0.1501,16660.0,16659.0,0.3007]
[1672638188747,0.1501,16660.0,16659.0,0.3237]
[1672638205903,0.1501,16660.0,16659.0,0.023]
[1672638206210,0.1501,16660.0,16659.0,0.3237]
[1672638214721,0.1488,16660.0,16659.0,0.3237]
[1672638229976,0.1488,16660.0,16659.0,0.023]
[1672638230182,0.1488,16660.0,16659.0,0.3237]
[1672638230599,0.1488,16660.0,16659.0,0.023]
[1672638231020,0.4651,16665.0,16659.0,0.62318553]
[1672638231229,0.4651,16665.0,16664.0,0.3007]
[1672638231548,0.1493,16665.0,16664.0,0.3007]
[1672638232172,0.1493,16665.0,16664.0,0.3107]
[1672638232591,0.1493,16665.0,16664.0,0.3007]
[1672638232915,0.1493,16665.0,16664.0,0.3107]
[1672638234694,0.1501,16665.0,16664.0,0.3107]
[1672638240797,0.1501,16665.0,16664.0,0.01]
[1672638241005,0.1501,16665.0,16664.0,0.3107]
[1672638244789,0.1488,16665.0,16664.0,0.3107]
[1672638247438,0.1501,16665.0,16664.0,0.3107]
[1672638251956,0.1501,16665.0,16664.0,0.01]
[1672638252266,0.1501,16665.0,16664.0,0.3107]
[1672638253846,0.1501,16665.0,16664.0,0.01]
[1672638260051,0.149,16665.0,16664.0,0.1588]
[1672638260269,0.1488,16667.0,16664.0,0.1588]
[1672638260579,0.1488,16667.0,16666.0,0.3007]
[1672638261630,0.1488,16667.0,16666.0,0.3117]
[1672638264676,0.1501,16667.0,16666.0,0.3117]
[1672638269828,0.1501,16667.0,16666.0,0.3107]
[1672638274877,0.1488,16667.0,16666.0,0.3007]
[1672638275187,0.1488,16667.0,16666.0,0.3067]
[1672638276020,0.1488,16667.0,16666.0,0.006]
[1672638276231,0.1488,16667.0,16666.0,0.3067]
[1672638282327,0.1488,16667.0,16666.0,0.30648849]
[1672638282958,0.1488,16667.0,16666.0,0.00578849]
[1672638283169,0.1488,16667.0,16666.0,0.30648849]
[1672638284850,0.1501,16667.0,16666.0,0.30648849]
[1672638285479,0.1501,16667.0,16666.0,0.00578849]
[1672638285688,0.1501,16667.0,16666.0,0.30648849]
[1672638287480,0.14988503,16667.0,16666.0,0.30648849]
[1672638290530,0.14988503,16667.0,16666.0,0.00578849]
[1672638290740,0.14988503,16667.0,16666.0,0.30648849]
[1672638304725,0.1501,16667.0,16666.0,0.30648849]
[1672638315440,0.1501,16667.0,16666.0,0.00578849]
[1672638315642,0.1501,16667.0,16666.0,0.30648849]
[1672638340473,0.1501,16667.0,16666.0,0.3063943]
[1672638344990,0.1501,16667.0,16666.0,0.0056943]
[1672638345201,0.1501,16667.0,16666.0,0.3063943]
[1672638347512,0.1501,16667.0,16666.0,0.0056943]
[1672638348039,0.1501,16667.0,16666.0,0.3063943]
[1672638349289,0.1501,16667.0,16666.0,0.0663943]
[1672638349503,0.1501,16667.0,16665.0,0.5]
[1672638349709,0.1501,16666.0,16665.0,0.5]
[1672638351086,0.1561,16666.0,16665.0,0.5]
[1672638354869,0.1561,16666.0,16665.0,0.8007]
[1672638357914,0.1561,16666.0,16665.0,0.5]
[1672638358129,0.1561,16666.0,16665.0,0.8007]
[1672638363800,0.1561,16666.0,16665.0,0.5]
[1672638364224,0.1561,16666.0,16665.0,0.8007]
[1672638364848,0.1548,16666.0,16665.0,0.8007]
[1672638365794,0.1548,16666.0,16665.0,0.5]
[1672638366011,0.1548,16666.0,16665.0,0.8007]
[1672638368422,0.1548,16666.0,16665.0,0.5]
[1672638368628,0.1548,16666.0,16665.0,0.8007]
[1672638369361,0.1549,16666.0,16665.0,0.8007]
[1672638370417,0.1549,16666.0,16665.0,0.5]
[1672638370629,0.1549,16666.0,16665.0,0.8007]
[1672638379043,0.1549,16666.0,16665.0,0.5]
[1672638379251,0.1549,16666.0,16665.0,0.8007]
[1672638381039,0.1549,16666.0,16665.0,0.5]
[1672638381254,0.1549,16666.0,16665.0,0.8007]
[1672638383767,0.1549,16666.0,16665.0,0.5]
[1672638383974,0.1549,16666.0,16665.0,0.8007]
[1672638387969,0.1549,16666.0,16665.0,0.5]
[1672638388179,0.1549,16666.0,16665.0,0.8007]
[1672638388395,0.1549,16666.0,16665.0,0.5]
[1672638388714,0.1549,16666.0,16665.0,0.8007]
[1672638394706,0.1561,16666.0,16665.0,0.8007]
[1672638395020,0.1561,16666.0,16665.0,0.80063197]
[1672638399953,0.1561,16666.0,16665.0,0.49993197]
[1672638400169,0.1561,16666.0,16665.0,0.80063197]
[1672638401949,0.1561,16666.0,16665.0,0.49993197]
[1672638402155,0.1561,16666.0,16665.0,0.80063197]
[1672638410771,0.1561,16666.0,16665.0,0.49993197]
[1672638411298,0.1561,16666.0,16665.0,0.80063197]
[1672638412764,0.1561,16666.0,16665.0,0.49993197]
[1672638412969,0.1561,16666.0,16665.0,0.80063197]
[1672638413915,0.1561,16666.0,16665.0,0.49993197]
[1672638414127,0.1561,16666.0,16665.0,0.80063197]
[1672638414971,0.1561,16666.0,16665.0,0.49993197]
[1672638415182,0.1561,16666.0,16665.0,0.80063197]
[1672638415397,0.1561,16666.0,16665.0,0.49993197]
[1672638415708,0.1561,16666.0,16665.0,0.80063197]
[1672638422751,0.1561,16666.0,16665.0,0.49993197]
[1672638422969,0.1561,16666.0,16665.0,0.80063197]
[1672638423803,0.1561,16666.0,16665.0,0.49993197]
[1672638424121,0.1561,16666.0,16665.0,0.80063197]
[1672638430951,0.1561,16666.0,16665.0,0.49993197]
[1672638431160,0.1561,16666.0,16665.0,0.80063197]
[1672638432730,0.1561,16666.0,16665.0,0.49993197]
[1672638433258,0.1561,16666.0,16665.0,0.80063197]
[1672638445063,0.1561,16666.0,16665.0,0.80050684]
[1672638449573,0.1561,16666.0,16665.0,0.49980684]
[1672638449773,0.1561,16666.0,16665.0,0.80050684]
[1672638451987,0.1561,16666.0,16665.0,0.49980684]
[1672638452196,0.1561,16666.0,16665.0,0.80050684]
[1672638458602,0.1561,16666.0,16665.0,0.49980684]
[1672638458922,0.1561,16666.0,16665.0,0.80050684]
[1672638464066,0.1561,16666.0,16665.0,0.49980684]
[1672638464281,0.1561,16666.0,16665.0,0.80050684]
[1672638464805,0.1561,16666.0,16665.0,0.49980684]
[1672638465023,0.1561,16666.0,16665.0,0.80050684]
[1672638465644,0.1561,16666.0,16665.0,0.49980684]
[1672638465853,0.1561,16666.0,16665.0,0.80050684]
[1672638467965,0.1561,16666.0,16665.0,0.49980684]
[1672638468273,0.1561,16666.0,16665.0,0.80050684]
[1672638474687,0.155,16666.0,16665.0,0.80050684]
[1672638483820,0.155,16666.0,16665.0,0.49980684]
[1672638484038,0.155,16666.0,16665.0,0.80050684]
[1672638495800,0.155,16666.0,16665.0,0.80032726]
[1672638505901,0.155,16666.0,16665.0,0.49962726]
[1672638506111,0.155,16666.0,16665.0,0.80032726]
[1672638508109,0.155,16666.0,16665.0,0.49962726]
[1672638508318,0.155,16666.0,16665.0,0.80032726]
[1672638509470,0.155,16666.0,16665.0,0.49962726]
[1672638509683,0.155,16666.0,16665.0,0.80032726]
[1672638542888,0.155,16666.0,16665.0,0.49962726]
[1672638543097,0.155,16666.0,16665.0,0.80032726]
[1672638544256,0.155,16666.0,16665.0,0.80011754]
[1672638548459,0.1553,16666.0,16665.0,0.80011754]
[1672638553179,0.1553,16666.0,16665.0,0.49941754]
[1672638556028,0.1553,16666.0,16665.0,0.80011754]
[1672638558329,0.1557,16666.0,16665.0,0.80011754]
[1672638564954,0.1553,16666.0,16665.0,0.80011754]
[1672638573045,0.1553,16666.0,16665.0,0.49941754]
[1672638573254,0.1553,16666.0,16665.0,0.80011754]
[1672638580828,0.1553,16666.0,16665.0,0.49941754]
[1672638581036,0.1553,16666.0,16665.0,0.80011754]
[1672638584717,0.006,16666.0,16665.0,0.80011754]
[1672638588813,0.006,16666.0,16665.0,0.49941754]
[1672638589024,0.006,16666.0,16665.0,0.80011754]
[1672638589443,0.006,16666.0,16665.0,0.79998917]
[1672638592387,0.006,16666.0,16665.0,0.95008917]
[1672638593012,0.006,16666.0,16665.0,4.72008917]
[1672638594388,0.006,16666.0,16665.0,4.71878917]
[1672638604806,0.006,16666.0,16665.0,4.71968917]
[1672638605010,0.006,16666.0,16665.0,4.41898917]
[1672638605216,0.006,16666.0,16665.0,4.71968917]
[1672638608802,0.006,16666.0,16665.0,5.47108917]
[1672638609120,0.1489,16669.0,16666.0,0.5]
[1672638609333,0.1489,16669.0,16668.0,0.3007]
[1672638609854,0.1489,16669.0,16668.0,0.4007]
[1672638611954,0.1489,16669.0,16668.0,0.4107]
[1672638612483,0.1489,16669.0,16668.0,0.11]
[1672638612683,0.1489,16669.0,16668.0,0.4107]
[1672638614899,0.1501,16669.0,16668.0,0.4107]
[1672638621934,0.1501,16669.0,16668.0,0.4007]
[1672638622146,0.1501,16669.0,16668.0,0.4067]
[1672638624774,0.1488,16669.0,16668.0,0.4067]
[1672638627087,0.1488,16669.0,16668.0,0.5568]
[1672638627296,0.1501,16670.0,16668.0,0.5568]
[1672638628035,0.15020624,16672.0,16669.0,0.1489]
[1672638628252,0.15020624,16672.0,16670.0,0.3007]
[1672638628567,0.15020624,16672.0,16671.0,0.5]
[1672638632345,0.15020624,16672.0,16671.0,0.51]
[1672638634857,0.29960624,16672.0,16671.0,0.51]
[1672638635492,0.29960624,16672.0,16671.0,0.01]
[1672638635705,0.44920624,16672.0,16671.0,0.01]
[1672638639178,0.74990624,16672.0,16671.0,0.01]
[1672638646965,0.44920624,16672.0,16671.0,0.01]
[1672638647165,0.74990624,16672.0,16671.0,0.01]
[1672638654214,0.44920624,16672.0,16671.0,0.01]
[1672638656421,0.44920624,16672.0,16671.0,0.00991339]
[1672638663767,0.74990624,16672.0,16671.0,0.00991339]
[1672638666080,0.44920624,16672.0,16671.0,0.00991339]
[1672638666293,0.74990624,16672.0,16671.0,0.00991339]
[1672638669022,0.44920624,16672.0,16671.0,0.00991339]
[1672638678910,0.74990624,16672.0,16671.0,0.00991339]
[1672638694687,1.65110624,16672.0,16671.0,0.00991339]
[1672638694898,1.35040624,16672.0,16671.0,0.00991339]
[1672638695209,1.65110624,16672.0,16671.0,0.00991339]
[1672638698682,1.35040624,16672.0,16671.0,0.00991339]
[1672638699006,1.65110624,16672.0,16671.0,0.00991339]
[1672638703199,1.65110624,16672.0,16671.0,0.00981971]
[1672638704566,1.65110624,16672.0,16668.0,0.8007]
[1672638704772,0.4489,16669.0,16668.0,0.8007]
[1672638706244,0.4589,16669.0,16668.0,0.8077]
[1672638706455,0.4589,16669.0,16668.0,0.507]
[1672638727077,0.4589,16669.0,16668.0,0.8077]
[1672638728329,0.4589,16669.0,16668.0,0.507]
[1672638728544,0.4589,16669.0,16668.0,0.8077]
[1672638730008,0.4589,16669.0,16668.0,0.507]
[1672638744736,0.3092,16669.0,16668.0,0.507]
[1672638746627,0.3092,16669.0,16668.0,0.6571]
[1672638746628,0.01,16669.0,16668.0,0.6571]
[1672638748200,0.1597,16669.0,16668.0,0.507]
[1672638749677,0.1597,16669.0,16668.0,0.8077]
[1672638752516,0.1597,16669.0,16668.0,0.507]
[1672638752725,0.1597,16669.0,16668.0,0.8077]
[1672638752936,0.1597,16669.0,16668.0,0.80759815]
[1672638753673,0.1597,16669.0,16668.0,0.50689815]
[1672638753876,0.1597,16669.0,16668.0,0.80759815]
[1672638754824,0.1601,16669.0,16668.0,0.80759815]
[1672638755030,0.1601,16669.0,16668.0,0.50689815]
[1672638755247,0.1601,16669.0,16668.0,0.80759815]
[1672638764611,0.1601,16669.0,16668.0,0.50689815]
[1672638764822,0.1588,16669.0,16668.0,0.80759815]
[1672638781960,0.1588,16669.0,16668.0,0.50689815]
[1672638782164,0.1588,16669.0,16668.0,0.80759815]
[1672638787635,0.01,16669.0,16668.0,0.95769815]
[1672638787847,0.01,16669.0,16668.0,1.55879815]
[1672638788573,0.14890624,16672.0,16669.0,0.1]
[1672638788783,0.14890624,16672.0,16671.0,0.3007]
[1672638789418,0.00010624,16672.0,16671.0,0.4496]
[1672638789624,0.00010624,16672.0,16671.0,0.9496]
[1672638789829,0.00010624,16672.0,16671.0,0.9576]
[1672638790578,0.00010624,16672.0,16671.0,0.9496]
[1672638794356,0.15020624,16672.0,16671.0,0.8007]
[1672638794884,0.29810624,16672.0,16671.0,0.8007]
[1672638796558,0.29810624,16672.0,16671.0,0.5]
[1672638796975,0.29810624,16672.0,16670.0,0.5]
[1672638797188,0.2994,16671.0,16670.0,0.5]
[1672638799080,0.2994,16671.0,16670.0,0.523]
[1672638803186,0.3002,16671.0,16670.0,0.523]
[1672638804650,0.2993,16671.0,16670.0,0.023]
[1672638804859,0.7493,16671.0,16670.0,0.023]
[1672638806233,0.7493,16671.0,16665.0,4.2506]
[1672638806234,2.551,16671.0,16665.0,0.6312]
[1672638806443,0.4475,16666.0,16665.0,0.3305]
[1672638806652,0.7482,16666.0,16663.0,0.3007]
[1672638806861,0.3007,16666.0,16663.0,0.3007]
[1672638807072,0.3007,16666.0,16665.0,0.127]
[1672638807601,0.3027,16666.0,16663.0,0.4267]
[1672638807810,0.2995,16664.0,16663.0,0.4267]
[1672638809489,0.1494,16664.0,16663.0,0.4267]
[1672638810328,0.1494,16664.0,16663.0,0.3007]
[1672638810751,0.1514,16664.0,16663.0,0.4277]
[1672638812223,0.1517,16664.0,16663.0,0.9277]
[1672638813482,0.002,16664.0,16663.0,1.0778]
[1672638814843,0.002,16664.0,16663.0,1.0765]
[1672638824833,0.002,16664.0,16663.0,1.0778]
[1672638831768,0.1521,16664.0,16663.0,0.9277]
[1672638834710,0.1513,16664.0,16663.0,0.9277]
[1672638850793,0.1513,16664.0,16663.0,0.92752501]
[1672638851853,0.1513,16664.0,16663.0,0.62682501]
[1672638852176,0.1513,16664.0,16663.0,0.92752501]
[1672638853320,0.1513,16664.0,16663.0,0.62682501]
[1672638853527,0.1513,16664.0,16663.0,0.92752501]
[1672638859736,0.1513,16664.0,16663.0,0.62682501]
[1672638859946,0.1513,16664.0,16663.0,0.92752501]
[1672638861202,0.451,16664.0,16663.0,0.92752501]
[1672638864873,0.3009,16664.0,16663.0,0.92752501]
[1672638867301,0.3009,16664.0,16663.0,0.42752501]
[1672638868458,0.3009,16664.0,16663.0,0.12682501]
[1672638869918,0.4505,16664.0,16663.0,0.12682501]
[1672638872353,0.7512,16664.0,16663.0,0.12682501]
[1672638873916,2.8525,16664.0,16659.0,0.9465]
[1672638874127,0.1493,16660.0,16659.0,0.6279]
[1672638874332,0.1493,16660.0,16659.0,0.3007]
[1672638875810,0.1501,16661.0,16659.0,0.3007]
[1672638876026,0.1501,16661.0,16660.0,0.5]
[1672638876865,0.1641,16661.0,16660.0,0.5]
[1672638877175,0.1501,16661.0,16660.0,0.5]
[1672638877382,0.1641,16661.0,16660.0,0.509]
[1672638879176,0.1641,16661.0,16660.0,0.8097]
[1672638879589,0.1641,16661.0,16660.0,0.509]
[1672638879805,0.1641,16661.0,16660.0,0.8097]
[1672638889157,0.1651,16661.0,16660.0,0.8087]
[1672638902715,0.1651,16661.0,16660.0,0.508]
[1672638902928,0.1651,16661.0,16660.0,0.8087]
[1672638905752,0.1651,16661.0,16660.0,0.508]
[1672638905967,0.1651,16661.0,16660.0,0.8087]
[1672638906698,0.1651,16661.0,16660.0,0.508]
[1672638906907,0.1651,16661.0,16660.0,0.8087]
[1672638909113,0.1651,16661.0,16660.0,0.508]
[1672638909329,0.1651,16661.0,16660.0,0.8087]
[1672638913634,0.1651,16661.0,16660.0,0.508]
[1672638913845,0.1651,16661.0,16660.0,0.8087]
[1672638918047,0.1651,16661.0,16660.0,0.508]
[1672638918262,0.1651,16661.0,16660.0,0.8087]
[1672638919527,0.1651,16661.0,16660.0,0.80857171]
[1672638919836,0.1651,16661.0,16660.0,0.50787171]
[1672638920053,0.1651,16661.0,16660.0,0.80857171]
[1672638933079,0.3152,16661.0,16660.0,0.80857171]
[1672638933286,0.3152,16661.0,16660.0,0.3087]
[1672638934764,0.3143,16661.0,16660.0,0.3087]
[1672638945393,0.4644,16661.0,16660.0,0.3087]
[1672638947173,0.4644,16661.0,16660.0,0.008]
[1672638947804,0.4644,16661.0,16660.0,0.308]
[1672638955377,0.4644,16661.0,16660.0,0.6087]
[1672638955694,0.4644,16661.0,16660.0,0.308]
[1672638955897,0.4644,16661.0,16660.0,0.6087]
[1672638956744,0.4644,16661.0,16660.0,0.308]
[1672638956950,0.4644,16661.0,16660.0,0.6087]
[1672638958215,0.4644,16661.0,16660.0,0.308]
[1672638960009,0.4644,16661.0,16660.0,0.008]
[1672638973460,0.4644,16661.0,16660.0,0.00784766]
[1672638974619,0.7651,16661.0,16660.0,0.00784766]
[1672638975667,0.7501,16661.0,16658.0,0.70762426]
[1672638975883,0.3002,16659.0,16658.0,0.70762426]
[1672638976935,0.3152,16659.0,16658.0,0.71462426]
[1672638981982,0.3152,16659.0,16658.0,0.41392426]
[1672638982292,0.3152,16659.0,16658.0,0.71462426]
[1672638987166,0.3152,16659.0,16658.0,0.41392426]
[1672638987482,0.3152,16659.0,16658.0,0.71462426]
[1672638989800,0.015,16659.0,16658.0,0.86472426]
[1672638990836,0.015,16659.0,16658.0,0.56402426]
[1672638991050,0.015,16659.0,16658.0,0.86472426]
[1672638995051,0.015,16659.0,16658.0,0.56402426]
[1672638995267,0.015,16659.0,16658.0,0.86472426]
[1672638998934,0.015,16659.0,16658.0,0.56402426]
[1672638999247,0.015,16659.0,16658.0,0.86472426]
[1672639001239,0.015,16659.0,16658.0,0.56402426]
[1672639001453,0.015,16659.0,16658.0,0.86472426]
[1672639002598,0.015,16659.0,16658.0,0.56402426]
[1672639002815,0.015,16659.0,16658.0,0.86472426]
[1672639003224,0.015,16659.0,16658.0,0.56402426]
[1672639003443,0.015,16659.0,16658.0,0.86472426]
[1672639004283,0.015,16659.0,16658.0,0.56402426]
[1672639004591,0.015,16659.0,16658.0,0.86472426]
[1672639009731,0.1501,16660.0,16658.0,0.85772426]
[1672639009943,0.001,16659.0,16658.0,0.68902426]
[1672639010150,0.001,16659.0,16658.0,0.98972426]
[1672639010795,0.001,16659.0,16658.0,0.98922426]
[1672639016887,0.001,16659.0,16658.0,0.68852426]
[1672639017301,0.001,16659.0,16658.0,0.98922426]
[1672639024772,0.1511,16659.0,16658.0,0.83962426]
[1672639026447,0.1511,16659.0,16658.0,0.83938541]
[1672639030118,0.1511,16659.0,16658.0,0.53868541]
[1672639030332,0.1511,16659.0,16658.0,0.83938541]
[1672639034756,0.001,16659.0,16658.0,0.83938541]
[1672639037897,0.001,16659.0,16658.0,0.53868541]
[1672639038115,0.001,16659.0,16658.0,0.83938541]
[1672639038738,0.001,16659.0,16658.0,0.53868541]
[1672639038950,0.001,16659.0,16658.0,0.83938541]
[1672639040848,0.001,16659.0,16658.0,0.53868541]
[1672639041157,0.001,16659.0,16658.0,0.83938541]
[1672639049897,0.001,16659.0,16658.0,0.53868541]
[1672639050107,0.001,16659.0,16658.0,0.83938541]
[1672639050843,0.001,16659.0,16658.0,0.53868541]
[1672639051154,0.001,16659.0,16658.0,0.83938541]
[1672639061767,0.001,16659.0,16658.0,0.53868541]
[1672639061979,0.001,16659.0,16658.0,0.83938541]
[1672639064819,0.1504,16659.0,16658.0,0.83938541]
[1672639067883,0.1504,16659.0,16658.0,0.53868541]
[1672639068094,0.1504,16659.0,16658.0,0.83938541]
[1672639068305,0.1504,16659.0,16658.0,0.53868541]
[1672639068520,0.1504,16659.0,16658.0,0.83938541]
[1672639070931,0.1504,16659.0,16658.0,0.53868541]
[1672639071141,0.1504,16659.0,16658.0,0.83938541]
[1672639071773,0.1504,16659.0,16658.0,0.83922822]
[1672639077027,0.1504,16659.0,16658.0,0.53852822]
[1672639077246,0.1504,16659.0,16658.0,0.83922822]
[1672639084380,0.15029948,16659.0,16658.0,0.83922822]
[1672639087749,0.15029948,16659.0,16658.0,0.53852822]
[1672639087959,0.15029948,16659.0,16658.0,0.83922822]
[1672639088804,0.15029948,16659.0,16658.0,0.53852822]
[1672639089014,0.15029948,16659.0,16658.0,0.83922822]
[1672639090060,0.15029948,16659.0,16658.0,0.53852822]
[1672639090267,0.15029948,16659.0,16658.0,0.83922822]
[1672639091004,0.15099948,16659.0,16658.0,0.83922822]
[1672639094685,0.14969948,16659.0,16658.0,0.83922822]
[1672639097840,0.14969948,16659.0,16658.0,0.53852822]
[1672639098265,0.14969948,16659.0,16658.0,0.83922822]
[1672639111813,0.14969948,16659.0,16658.0,0.53852822]
[1672639112133,0.14969948,16659.0,16658.0,0.83922822]
[1672639114014,0.14969948,16659.0,16658.0,0.53852822]
[1672639114238,0.14969948,16659.0,16658.0,0.83922822]
[1672639127789,0.14969948,16659.0,16658.0,0.53852822]
[1672639128001,0.14969948,16659.0,16658.0,0.83922822]
[1672639129673,0.14969948,16659.0,16658.0,0.83910726]
[1672639133469,0.14969948,16659.0,16658.0,0.53840726]
[1672639133679,0.14969948,16659.0,16658.0,0.83910726]
[1672639135567,0.14969948,16659.0,16658.0,0.53840726]
[1672639135776,0.14969948,16659.0,16658.0,0.83910726]
[1672639140937,0.14969948,16659.0,16658.0,0.53840726]
[1672639141147,0.14969948,16659.0,16658.0,0.83910726]
[1672639148919,0.14969948,16659.0,16658.0,0.53840726]
[1672639149123,0.14969948,16659.0,16658.0,0.83910726]
[1672639149333,0.14969948,16659.0,16658.0,0.53840726]
[1672639149544,0.14969948,16659.0,16658.0,0.83910726]
[1672639150911,0.29979948,16659.0,16658.0,0.53840726]
[1672639155634,0.29979948,16659.0,16658.0,0.83910726]
[1672639157218,0.29979948,16659.0,16658.0,0.53840726]
[1672639162262,0.29979948,16659.0,16658.0,0.83910726]
[1672639170453,0.15029948,16659.0,16658.0,0.83910726]
[1672639174857,0.15099948,16659.0,16658.0,0.83910726]
[1672639175698,0.15099948,16659.0,16658.0,0.53840726]
[1672639175911,0.15099948,16659.0,16658.0,0.83910726]
[1672639178855,0.15099948,16659.0,16658.0,0.83896283]
[1672639181384,0.15099948,16659.0,16658.0,0.53826283]
[1672639181594,0.15099948,16659.0,16658.0,0.83896283]
[1672639182016,0.15099948,16659.0,16658.0,0.53826283]
[1672639182223,0.15099948,16659.0,16658.0,0.83896283]
[1672639189890,0.15099948,16659.0,16658.0,0.53826283]
[1672639190209,0.15099948,16659.0,16658.0,0.83896283]
[1672639191465,0.15099948,16659.0,16658.0,0.53826283]
[1672639191687,0.15099948,16659.0,16658.0,0.83896283]
[1672639193568,0.15099948,16659.0,16658.0,0.53826283]
[1672639193886,0.15099948,16659.0,16658.0,0.83896283]
[1672639195565,0.15099948,16659.0,16658.0,0.53826283]
[1672639195774,0.15099948,16659.0,16658.0,0.83896283]
[1672639204921,0.00089948,16659.0,16658.0,0.83896283]
[1672639210807,0.00089948,16659.0,16658.0,0.53826283]
[1672639211011,0.00089948,16659.0,16658.0,0.83896283]
[1672639214698,0.00089948,16659.0,16658.0,0.98906283]
[1672639226478,0.00089948,16659.0,16658.0,0.68836283]
[1672639226694,0.00089948,16659.0,16658.0,0.98906283]
[1672639228903,0.00089948,16659.0,16658.0,0.98898887]
[1672639235947,0.00089948,16659.0,16658.0,0.68828887]
[1672639236264,0.00089948,16659.0,16658.0,0.98898887]
[1672639244986,0.00089948,16659.0,16658.0,0.68828887]
[1672639245202,0.00089948,16659.0,16658.0,0.98898887]
[1672639245626,0.00089948,16659.0,16658.0,0.68828887]
[1672639246251,0.00089948,16659.0,16658.0,0.98898887]
[1672639250454,0.00089948,16659.0,16658.0,0.68828887]
[1672639250874,0.00089948,16659.0,16658.0,0.98898887]
[1672639252867,0.00089948,16659.0,16658.0,0.68828887]
[1672639253067,0.00089948,16659.0,16658.0,0.98898887]
[1672639256856,0.00089948,16659.0,16658.0,0.68828887]
[1672639257384,0.00089948,16659.0,16658.0,0.98898887]
[1672639261591,0.00089948,16659.0,16658.0,1.59008887]
[1672639267158,0.00089948,16659.0,16658.0,1.28938887]
[1672639267376,0.00089948,16659.0,16658.0,1.59008887]
[1672639274840,0.00089948,16659.0,16658.0,1.58878887]
[1672639282714,0.00089948,16659.0,16658.0,1.58865334]
[1672639284826,0.00089948,16659.0,16658.0,1.58945334]
[1672639307839,0.00069622,16659.0,16658.0,1.58945334]
[1672639312461,0.00069622,16659.0,16658.0,1.28875334]
[1672639312669,0.00069622,16659.0,16658.0,1.58945334]
[1672639314163,0.00069622,16659.0,16658.0,1.28875334]
[1672639314366,0.00069622,16659.0,16658.0,1.58945334]
[1672639315113,0.00069622,16659.0,16658.0,1.28875334]
[1672639315642,0.00069622,16659.0,16658.0,1.58945334]
[1672639315839,0.00069622,16659.0,16658.0,1.28875334]
[1672639316165,0.00069622,16659.0,16658.0,1.58945334]
[1672639321535,0.00069622,16659.0,16658.0,1.28875334]
[1672639321734,0.00069622,16659.0,16658.0,1.58945334]
[1672639323904,0.00069622,16659.0,16658.0,1.28875334]
[1672639324052,0.00069622,16659.0,16658.0,1.58945334]